bitfinex-derivatives/quotes_ETHF0:USTF0_20250213
["timestamp","ask_amount","ask_price","bid_price","bid_amount"]
[1739485913992,3.2078,2669.0,2668.8,0.74934]
[1739485914189,3.95713,2669.0,2668.6,4.49792778]
[1739485914794,0.74935,2668.9,2668.8,0.74935]
[1739485918392,0.74935,2668.9,2668.6,2.62439778]
[1739485918594,0.74935,2668.9,2668.8,0.74936]
[1739485918795,3.95712,2669.0,2668.9,0.74933]
[1739485919192,3.2078,2669.0,2668.6,2.62439778]
[1739485919393,0.74933,2668.9,2668.8,0.74935]
[1739485919692,3.2078,2669.0,2668.7,0.74937]
[1739485919990,0.74935,2668.9,2668.7,0.74937]
[1739485920192,0.74936,2668.8,2668.7,0.74937]
[1739485920496,3.2078,2669.0,2668.7,0.74937]
[1739485920696,0.74936,2668.8,2668.7,0.74937]
[1739485921096,3.2078,2669.0,2668.7,0.74937]
[1739485921299,0.74936,2668.8,2668.6,2.62439778]
[1739485921497,3.2078,2669.0,2668.7,0.74939]
[1739485921691,0.74933,2668.9,2668.7,0.74939]
[1739485922997,3.2078,2669.0,2668.7,0.74939]
[1739485923198,0.74936,2668.8,2668.7,0.74939]
[1739485923494,0.74936,2668.8,2668.6,2.62439778]
[1739485923794,0.74936,2668.8,2668.7,0.74939]
[1739485924297,0.74936,2668.8,2668.6,2.62439778]
[1739485924497,0.74936,2668.8,2668.7,0.74939]
[1739485924898,0.74936,2668.8,2668.6,3.37378778]
[1739485925293,0.74936,2668.8,2668.7,0.74939]
[1739485926696,5.08107,2669.0,2668.6,3.37378778]
[1739485927000,0.74938,2668.8,2668.6,3.37378778]
[1739485927202,0.74938,2668.8,2668.6,2.62439778]
[1739485927404,0.74938,2668.8,2668.7,0.74939]
[1739485929095,3.2078,2669.0,2668.7,0.74939]
[1739485929294,3.2078,2669.0,2668.6,2.62439778]
[1739485929502,3.2078,2669.0,2668.8,0.74935]
[1739485929802,3.2078,2669.0,2668.7,0.74936]
[1739485930108,0.74936,2668.8,2668.7,0.74936]
[1739485931298,0.74937,2668.8,2668.6,1.89039]
[1739485931493,0.74939,2668.7,2668.6,1.89039]
[1739485931693,0.74939,2668.7,2668.6,1.141]
[1739485931993,0.74939,2668.7,2668.6,0.5859]
[1739485932796,1.34279,2668.7,2668.6,0.5859]
[1739485933206,4.55059,2668.7,2668.6,0.5859]
[1739485934907,3.8012,2668.7,2668.6,0.5859]
[1739485935109,3.8012,2668.7,2668.6,1.33531]
[1739485935510,4.55059,2668.7,2668.6,1.33531]
[1739485935708,3.8012,2668.7,2668.6,1.33531]
[1739485935902,4.55059,2668.7,2668.6,1.33531]
[1739485938012,4.55059,2668.7,2668.6,0.5859]
[1739485939010,3.8012,2668.7,2668.6,1.33531]
[1739485939214,3.2078,2669.3,2668.8,1.87336]
[1739485939509,3.2078,2669.3,2669.2,2.23264778]
[1739485940613,3.2078,2669.3,2669.2,1.48339778]
[1739485941013,3.95702,2669.3,2669.2,1.48339778]
[1739485942607,3.2078,2669.3,2669.2,1.48339778]
[1739485942803,3.95702,2669.3,2669.2,1.48339778]
[1739485943013,3.2078,2669.3,2669.2,1.48339778]
[1739485943513,3.2078,2669.3,2669.2,2.23264778]
[1739485944108,3.2078,2669.3,2669.2,1.48339778]
[1739485944310,3.95702,2669.3,2669.2,1.48339778]
[1739485945017,3.95702,2669.3,2669.0,4.22679778]
[1739485945216,3.2078,2669.3,2669.0,4.22679778]
[1739485945413,3.2078,2669.3,2669.1,0.74925]
[1739485945917,3.2078,2669.3,2669.2,0.74925]
[1739485946119,3.2078,2669.3,2669.1,0.74925]
[1739485946816,3.2078,2669.3,2669.2,0.74925]
[1739485947018,3.2078,2669.3,2669.0,4.22679778]
[1739485947217,4.52422,2669.3,2669.1,0.74927]
[1739485947915,3.775,2669.3,2669.1,0.74926]
[1739485948116,4.52422,2669.3,2669.1,0.74926]
[1739485949017,3.775,2669.3,2669.0,2.60279778]
[1739485949323,3.2078,2669.3,2669.2,2.23264778]
[1739485950413,0.00561977,2669.5,2669.2,1.48339778]
[1739485950607,0.00561977,2669.5,2669.4,2.23258778]
[1739485952713,3.2078,2669.9,2669.8,0.74908]
[1739485953012,3.2078,2669.9,2669.8,2.23247778]
[1739485953422,3.2078,2670.2,2670.1,0.74899]
[1739485953619,0.5425,2670.9,2670.1,0.74899]
[1739485953620,3.2078,2670.5,2670.2,1.48339778]
[1739485953812,0.00561977,2670.4,2670.3,2.48764]
[1739485955519,6.1238,2671.2,2670.3,9.22209778]
[1739485955725,3.2078,2671.2,2671.0,2.23212778]
[1739485957118,3.2078,2671.2,2671.0,1.48339778]
[1739485957612,3.2078,2671.2,2670.9,1.7538]
[1739485957613,3.2078,2671.2,2671.1,0.74871]
[1739485957819,0.00561977,2671.4,2671.1,3.30810042]
[1739485958023,0.00561977,2671.4,2671.3,0.74866]
[1739485959323,1.1781,2672.2,2671.3,3.2078]
[1739485959518,1.1781,2672.2,2671.4,3.85620042]
[1739485959717,1.1781,2672.2,2671.8,0.7485]
[1739485960513,1.1781,2672.2,2671.9,0.74848]
[1739485960722,1.1781,2672.2,2671.9,0.74849]
[1739485961324,0.00560155,2672.3,2672.0,0.74845]
[1739485961916,0.00560155,2672.3,2672.1,0.74843]
[1739485962125,0.00560155,2672.3,2671.8,0.5643]
[1739485962317,0.00560155,2672.3,2672.2,0.74841]
[1739485965820,0.00560155,2672.3,2672.2,3.95621]
[1739485968525,0.5695,2673.1,2672.2,3.95621]
[1739485968526,3.2078,2673.1,2672.4,1.87088]
[1739485968727,3.2078,2673.1,2672.9,0.7482]
[1739485968925,3.95595,2673.1,2672.9,1.622]
[1739485969527,3.2078,2673.1,2672.9,1.622]
[1739485969834,3.95596,2673.1,2672.9,1.622]
[1739485970131,3.2078,2673.1,2672.9,1.622]
[1739485970338,3.95596,2673.1,2672.9,1.622]
[1739485970531,3.95596,2673.1,2672.9,2.37021]
[1739485971134,3.2078,2673.1,2672.9,2.37021]
[1739485971338,3.2078,2673.1,2672.9,1.622]
[1739485971532,3.2078,2673.1,2672.9,2.37019]
[1739485972733,4.50034,2673.2,2672.9,2.37019]
[1739485973037,4.50034,2673.2,2673.0,0.74817]
[1739485973428,0.74815,2673.1,2672.9,2.37019]
[1739485974339,0.74818,2673.0,2672.9,2.37021]
[1739485975237,3.7522,2673.2,2672.9,1.622]
[1739485975438,0.74816,2673.1,2673.0,0.74818]
[1739485975734,0.74815,2673.1,2673.0,0.74818]
[1739485977839,0.74819,2673.0,2672.9,0.7482]
[1739485978031,0.74821,2672.9,2672.8,0.74822]
[1739485978236,0.74817,2673.1,2673.0,0.74817]
[1739485978939,3.7522,2673.2,2672.7,4.93010042]
[1739485979139,0.7482,2673.0,2672.9,0.7482]
[1739485979740,3.7522,2673.2,2672.6,0.5987]
[1739485979939,0.74825,2672.8,2672.7,0.74824]
[1739485980243,1.30212,2672.9,2672.8,0.74824]
[1739485980442,0.5539,2672.9,2672.5,1.622]
[1739485980643,0.7483,2672.6,2672.5,0.7483]
[1739485981245,0.5552,2672.8,2672.3,6.70074]
[1739485981441,0.5552,2672.8,2672.3,3.2078]
[1739485981745,0.74839,2672.3,2672.2,0.74838]
[1739485982343,0.5999,2672.5,2672.1,4.92910042]
[1739485982543,1.34823,2672.5,2672.1,4.92910042]
[1739485982944,1.34823,2672.5,2672.3,0.74837]
[1739485983245,0.5999,2672.5,2672.1,4.92910042]
[1739485983449,0.74839,2672.3,2672.1,4.05652042]
[1739485983940,0.74839,2672.3,2672.1,3.30810042]
[1739485984246,0.74839,2672.3,2672.2,0.74841]
[1739485984642,0.5651,2672.4,2672.2,0.74841]
[1739485984944,0.5999,2672.5,2672.1,3.30810042]
[1739485985145,3.2078,2672.6,2672.0,4.09345]
[1739485985146,3.2078,2672.6,2672.4,3.30810042]
[1739485985450,3.2078,2672.9,2672.8,0.74824]
[1739485985946,3.2078,2672.9,2672.8,41.54824]
[1739485986145,0.5584,2673.0,2672.9,0.74821]
[1739485986648,3.95593,2673.2,2673.0,0.74816]
[1739485987642,3.95593,2673.2,2672.6,5.64071]
[1739485987643,3.2078,2673.2,2672.6,3.77]
[1739485987843,3.2078,2673.2,2673.1,0.74815]
[1739485989744,3.2078,2673.2,2672.8,42.421]
[1739485989951,3.2078,2673.2,2673.0,0.74818]
[1739485990448,3.2078,2673.2,2673.1,0.6004]
[1739485990750,3.2078,2673.2,2673.1,1.34855]
[1739485990951,3.2078,2673.2,2673.1,0.6004]
[1739485991845,3.2078,2673.2,2673.1,1.34855]
[1739485992352,3.2078,2673.5,2673.1,0.6004]
[1739485992651,3.95585,2673.5,2673.1,1.1901]
[1739485992849,3.2078,2673.5,2673.3,0.74809]
[1739485993044,3.2078,2673.5,2673.2,1.621]
[1739485993239,3.95586,2673.5,2673.2,2.36912]
[1739485994546,3.95585,2673.5,2673.2,1.621]
[1739485994849,3.95585,2673.5,2673.3,0.7481]
[1739485995056,3.2078,2673.5,2673.2,1.621]
[1739485995248,3.2078,2673.5,2673.3,4.05618042]
[1739485995447,3.2078,2673.5,2673.3,3.30810042]
[1739485995750,3.95586,2673.5,2673.3,3.30810042]
[1739485996150,3.95586,2673.5,2673.3,4.05618042]
[1739485996754,0.74807,2673.4,2673.3,3.30810042]
[1739485997354,3.2078,2673.5,2673.3,4.05618042]
[1739485997551,0.74807,2673.4,2673.3,4.05618042]
[1739485997952,3.95586,2673.5,2673.3,4.05618042]
[1739485998457,3.2078,2673.5,2673.4,0.74807]
[1739485998651,3.95584,2673.5,2673.4,0.74807]
[1739485998848,3.95584,2673.5,2673.3,4.05618042]
[1739485999458,3.2078,2673.5,2673.3,3.30810042]
[1739485999757,3.95586,2673.5,2673.3,4.05618042]
[1739485999956,0.74807,2673.4,2673.3,4.05618042]
[1739486000557,0.74809,2673.4,2673.2,1.621]
[1739486000853,0.5815,2673.4,2673.2,0.74813]
[1739486001055,0.5815,2673.4,2673.1,3.3747]
[1739486001356,1.3296,2673.4,2673.2,0.74813]
[1739486001755,0.7481,2673.3,2673.2,0.74813]
[1739486001957,1.32959,2673.4,2673.3,0.7481]
[1739486005658,1.32957,2673.4,2673.3,0.7481]
[1739486005956,0.5815,2673.4,2673.3,0.7481]
[1739486006456,1.32957,2673.4,2673.3,0.7481]
[1739486007360,0.74811,2673.3,2673.2,0.74811]
[1739486009852,0.74812,2673.3,2673.2,0.74812]
[1739486010048,5.07791,2673.5,2673.1,1.1901]
[1739486011059,0.74812,2673.3,2673.2,0.74812]
[1739486011658,0.74813,2673.2,2673.1,1.34853]
[1739486012861,0.74813,2673.2,2673.1,0.6004]
[1739486013056,5.07791,2673.5,2673.1,0.6004]
[1739486013258,0.74813,2673.2,2673.1,0.6004]
[1739486014862,0.74813,2673.2,2673.1,1.34855]
[1739486020771,0.74813,2673.3,2673.2,0.74812]
[1739486021572,0.74813,2673.3,2673.2,2.22637109]
[1739486024176,3.2078,2673.5,2673.2,1.47825109]
[1739486024377,3.95586,2673.5,2673.4,0.74807]
[1739486024676,3.2078,2673.5,2673.4,0.74807]
[1739486024875,3.95584,2673.5,2673.4,0.74807]
[1739486025276,0.74809,2673.4,2673.3,0.74807]
[1739486025673,0.7481,2673.3,2673.2,2.77416109]
[1739486026281,0.74809,2673.4,2673.3,0.74807]
[1739486027075,0.7481,2673.3,2673.2,3.33136109]
[1739486029388,0.7481,2673.3,2673.2,2.58325109]
[1739486029682,0.7481,2673.3,2673.2,3.33138109]
[1739486037092,3.9559,2673.3,2673.2,3.33138109]
[1739486041292,3.2078,2673.3,2673.2,2.58325109]
[1739486041487,3.9559,2673.3,2673.2,2.58325109]
[1739486042597,3.9559,2673.3,2673.2,1.105]
[1739486043397,3.9559,2673.3,2673.2,1.85313]
[1739486045302,3.2078,2673.3,2673.2,1.85313]
[1739486045597,5.08293,2673.6,2673.5,0.74804]
[1739486045999,5.08291,2673.6,2673.5,0.74804]
[1739486047300,3.95581,2673.6,2673.5,0.74804]
[1739486051001,3.95581,2673.6,2673.3,1.87025]
[1739486051002,0.74809,2673.4,2673.3,0.74807]
[1739486060609,3.2078,2673.6,2673.2,3.34854109]
[1739486060806,3.95581,2673.6,2673.5,2.22629109]
[1739486062215,0.74801,2673.6,2673.5,2.22629109]
[1739486063318,3.45655375,2673.8,2673.5,1.47825109]
[1739486063513,0.74801,2673.6,2673.5,1.47825109]
[1739486063716,0.74801,2673.6,2673.5,2.02445109]
[1739486064512,0.74801,2673.6,2673.5,2.57275109]
[1739486065516,0.74801,2673.6,2673.5,3.32079109]
[1739486066517,0.74801,2673.6,2673.5,2.57275109]
[1739486067622,0.74801,2673.6,2673.5,3.32079109]
[1739486068025,0.74801,2673.6,2673.5,2.57275109]
[1739486068223,0.74801,2673.6,2673.5,3.32079109]
[1739486071216,0.74801,2673.6,2673.5,2.57275109]
[1739486071823,0.74801,2673.6,2673.5,1.84254]
[1739486072424,3.95581,2673.6,2673.5,1.0945]
[1739486073127,3.2078,2673.6,2673.1,1.47825109]
[1739486073319,0.74836,2672.4,2671.8,4.26373997]
[1739486073526,3.2078,2672.4,2671.8,4.3777]
[1739486073719,3.2078,2672.1,2671.8,0.5957]
[1739486074026,3.2078,2672.1,2671.8,1.34421]
[1739486074424,3.2078,2672.1,2671.8,0.5957]
[1739486075034,0.74849,2671.9,2671.8,0.5957]
[1739486076134,0.74852,2671.8,2671.7,0.00561977]
[1739486076332,5.43457109,2671.8,2671.7,0.00561977]
[1739486077730,3.95632,2671.8,2671.7,0.00561977]
[1739486091138,0.74863,2671.4,2671.3,0.5957]
[1739486091840,0.74869,2671.2,2671.1,0.5498]
[1739486092038,3.95649,2671.2,2671.1,0.5498]
[1739486093344,0.74874,2671.0,2670.9,1.18821977]
[1739486094743,0.74874,2671.0,2670.9,0.59141977]
[1739486099737,0.74874,2671.0,2670.9,0.00561977]
[1739486100748,5.66663,2671.2,2671.1,0.74871]
[1739486100749,3.95651,2671.2,2671.1,0.74871]
[1739486101045,3.2078,2671.2,2671.1,0.74871]
[1739486101249,3.95649,2671.2,2671.1,0.74871]
[1739486102043,3.95649,2671.2,2670.9,0.00561977]
[1739486102044,0.74871,2671.1,2671.0,0.74872]
[1739486102442,3.2078,2671.2,2671.1,0.74871]
[1739486103852,3.95641,2671.5,2671.3,0.74863]
[1739486104059,3.95641,2671.5,2671.4,1.1712]
[1739486105051,0.74874,2671.0,2670.9,0.00561977]
[1739486106359,0.74874,2671.0,2670.9,9.77e-06]
[1739486107848,6.74874,2671.0,2670.9,9.77e-06]
[1739486109056,3.20779023,2670.8,2669.4,0.5677]
[1739486109259,3.95696,2669.5,2669.4,0.5677]
[1739486111259,0.74919,2669.4,2669.3,0.29828767]
[1739486111564,0.74922,2669.3,2669.2,0.00561977]
[1739486118560,0.74922,2669.3,2669.2,9.77e-06]
[1739486119659,1.29462,2669.3,2669.2,9.77e-06]
[1739486131176,7.29462,2669.3,2669.2,9.77e-06]
[1739486131371,7.35578566,2669.3,2669.2,9.77e-06]
[1739486131972,1.35578566,2669.3,2669.2,9.77e-06]
[1739486132173,1.35577723,2669.3,2669.2,9.77e-06]
[1739486132872,1.29462,2669.3,2669.2,9.77e-06]
[1739486134282,2.44362,2669.3,2669.2,9.77e-06]
[1739486134575,8.44362,2669.3,2669.2,9.77e-06]
[1739486134876,8.50475138,2669.3,2669.2,9.77e-06]
[1739486135076,7.75553138,2669.3,2667.4,6.51594983]
[1739486135276,0.74966,2667.8,2667.7,0.74965]
[1739486138575,3.2078,2667.9,2667.8,0.74964]
[1739486138774,3.95741,2667.9,2667.8,0.74964]
[1739486139277,3.95741,2667.9,2667.8,40.8]
[1739486142179,3.2078,2667.9,2667.7,0.74967]
[1739486142483,3.95743,2667.9,2667.8,0.74964]
[1739486142783,0.74965,2667.8,2667.7,41.54964]
[1739486145385,3.2078,2667.9,2667.8,0.74964]
[1739486145581,3.95741,2667.9,2667.8,0.74964]
[1739486145983,3.95741,2667.9,2667.8,41.54964]
[1739486148488,3.2078,2667.9,2667.8,41.54964]
[1739486149790,3.95741,2667.9,2667.8,41.54964]
[1739486150288,3.2078,2667.9,2667.8,41.54964]
[1739486150789,3.95741,2667.9,2667.8,41.54964]
[1739486151890,3.95741,2667.9,2667.8,0.74964]
[1739486153487,3.95741,2667.9,2667.8,1.30904]
[1739486153792,3.2078,2667.9,2667.8,1.30904]
[1739486154092,3.95741,2667.9,2667.8,1.30904]
[1739486154592,3.2078,2667.9,2667.8,1.30904]
[1739486156492,3.95741,2667.9,2667.8,1.30904]
[1739486156689,3.2078,2667.9,2667.8,1.30904]
[1739486162601,3.95741,2667.9,2667.8,1.30904]
[1739486167001,3.2078,2667.9,2667.8,1.30904]
[1739486167407,3.95741,2667.9,2667.8,0.74964]
[1739486173100,0.74969,2667.7,2667.6,0.74967]
[1739486173606,0.7497,2667.6,2667.5,0.00561977]
[1739486173804,1.3187,2667.6,2667.5,0.00561977]
[1739486174202,1.3187,2667.6,2667.5,0.75533977]
[1739486175205,1.3187,2667.6,2667.5,0.00561977]
[1739486176210,3.7768,2667.6,2666.8,3.2078]
[1739486176408,0.74979,2667.3,2667.2,0.74981]
[1739486176606,0.74979,2667.3,2666.8,4.9686]
[1739486176803,0.582,2667.2,2667.1,0.74984]
[1739486177209,1.33182,2667.2,2667.0,0.74986]
[1739486177407,0.5938,2667.1,2666.9,0.00561977]
[1739486177607,0.5938,2667.1,2667.0,0.74986]
[1739486181206,0.5938,2667.1,2666.9,0.55901977]
[1739486181410,0.5938,2667.1,2667.0,0.74986]
[1739486184810,1.34364,2667.1,2667.0,0.74986]
[1739486185311,0.5938,2667.1,2667.0,0.74986]
[1739486186117,1.34364,2667.1,2667.0,0.74986]
[1739486191319,0.5938,2667.1,2667.0,0.74986]
[1739486192219,1.34364,2667.1,2667.0,0.74986]
[1739486193522,0.5938,2667.1,2667.0,0.74986]
[1739486193919,1.34364,2667.1,2667.0,0.74986]
[1739486196319,0.5938,2667.1,2667.0,0.74986]
[1739486197921,1.33960983,2667.1,2667.0,0.74986]
[1739486202226,4.54740983,2667.1,2667.0,0.74986]
[1739486207932,4.54740983,2667.1,2666.9,1.30887977]
[1739486207933,0.74986,2667.0,2666.9,1.30887977]
[1739486208337,0.74986,2667.0,2666.9,1.30890977]
[1739486215729,0.74986,2667.0,2666.9,0.00561977]
[1739486215928,0.74995,2666.7,2666.6,0.74997]
[1739486216132,1.48522543,2666.8,2666.4,45.1563]
[1739486216326,0.75,2666.5,2666.4,45.90632]
[1739486216834,2.79511543,2666.6,2666.5,0.75]
[1739486218639,0.75,2666.5,2666.4,0.75001]
[1739486220136,0.5599,2666.6,2666.3,41.3701]
[1739486220335,0.5599,2666.6,2666.2,1.1294465]
[1739486220336,2.04512543,2666.6,2666.2,0.0037465]
[1739486220533,1.31702,2666.5,2666.2,0.0037465]
[1739486220732,0.567,2666.5,2666.3,0.75004]
[1739486220935,0.75003,2666.4,2666.3,0.75004]
[1739486221439,1.31702,2666.5,2666.4,0.75003]
[1739486223758,0.75002,2666.5,2666.4,0.75003]
[1739486225858,0.75006,2666.3,2666.2,0.7538165]
[1739486226551,0.75006,2666.4,2666.3,0.75005]
[1739486228550,0.5649,2666.5,2666.4,0.75003]
[1739486228551,1.31493,2666.5,2666.4,0.75003]
[1739486229459,0.5649,2666.5,2666.2,0.0037465]
[1739486229657,0.75006,2666.3,2666.2,0.7538165]
[1739486230358,0.75006,2666.3,2666.2,0.7538365]
[1739486230853,0.75006,2666.3,2666.2,0.0037465]
[1739486235959,0.75017,2665.9,2665.8,0.7502]
[1739486236158,0.75025,2665.7,2665.6,0.75024]
[1739486237960,1.48522543,2665.7,2665.5,1.1613]
[1739486238263,0.75026,2665.6,2665.5,1.91157]
[1739486238463,2.23547543,2665.7,2665.6,0.75026]
[1739486240570,0.75025,2665.7,2665.6,0.75026]
[1739486242174,0.75026,2665.6,2665.5,1.91156]
[1739486242470,0.75023,2665.7,2665.6,0.75024]
[1739486243963,0.75023,2665.7,2665.5,1.1613]
[1739486244169,0.75023,2665.7,2665.6,0.75026]
[1739486246272,0.75023,2665.7,2665.6,0.75024]
[1739486246273,0.75025,2665.7,2665.6,0.75024]
[1739486249475,4.69302543,2665.9,2665.5,1.1613]
[1739486249676,5.44321543,2665.9,2665.8,0.7502]
[1739486249877,0.75024,2665.7,2665.6,0.75023]
[1739486250771,4.69302543,2665.9,2665.5,1.1613]
[1739486251078,0.75022,2665.8,2665.7,0.75021]
[1739486251669,5.44321543,2665.9,2665.8,0.7502]
[1739486252278,0.75022,2665.8,2665.7,0.75021]
[1739486253377,0.75023,2665.7,2665.6,0.75024]
[1739486254685,5.44321543,2665.9,2665.8,0.7502]
[1739486254885,0.7502,2665.8,2665.7,1.34191]
[1739486255181,0.7502,2665.8,2665.7,0.5917]
[1739486255373,0.7502,2665.8,2665.7,1.3419]
[1739486257781,3.2078,2665.9,2665.8,0.7502]
[1739486258387,0.7502,2665.8,2665.7,1.34192]
[1739486260687,3.2078,2665.9,2665.7,0.5917]
[1739486260874,3.95798,2665.9,2665.8,0.7502]
[1739486262386,3.2078,2665.9,2665.8,0.7502]
[1739486262585,3.95797,2665.9,2665.8,0.7502]
[1739486265395,3.2078,2665.9,2665.8,0.7502]
[1739486265579,3.95797,2665.9,2665.8,0.7502]
[1739486266291,3.2078,2665.9,2665.8,0.7502]
[1739486268087,3.95797,2665.9,2665.8,0.7502]
[1739486268287,3.2078,2665.9,2665.8,0.7502]
[1739486269396,3.2078,2665.9,2665.7,0.5917]
[1739486269593,3.95799,2665.9,2665.8,0.7502]
[1739486269891,3.2078,2665.9,2665.8,0.7502]
[1739486270194,3.2078,2665.9,2665.8,2.23542543]
[1739486270382,1.127,2666.3,2666.1,0.7501]
[1739486270383,3.9579,2666.2,2666.1,0.7501]
[1739486270588,3.2078,2666.2,2666.1,0.7501]
[1739486271397,3.2078,2666.2,2666.1,1.3389]
[1739486276788,3.95781,2666.5,2666.1,0.5888]
[1739486276990,3.2078,2666.5,2666.4,2.23525543]
[1739486277796,3.2078,2666.5,2666.4,2.78085543]
[1739486280602,0.00561977,2666.7,2666.6,0.74998]
[1739486280902,0.75556977,2666.7,2666.6,0.74998]
[1739486281304,0.00561977,2666.7,2666.6,0.74998]
[1739486281800,0.75556977,2666.7,2666.6,0.74998]
[1739486282200,0.00561977,2666.7,2666.6,0.74998]
[1739486282602,0.00561977,2666.7,2666.6,2.23520543]
[1739486282794,0.00561977,2666.7,2666.6,2.80060543]
[1739486288202,0.00561977,2666.7,2666.6,8.80060543]
[1739486288407,0.00561977,2666.7,2666.6,9.10437165]
[1739486288604,3.2078,2667.1,2667.0,0.74986]
[1739486288908,3.2078,2667.1,2667.0,2.23508543]
[1739486289306,3.2078,2667.1,2667.0,2.83598543]
[1739486291707,3.95764,2667.1,2667.0,2.83598543]
[1739486292096,3.2078,2667.1,2667.0,2.83598543]
[1739486292908,3.95764,2667.1,2667.0,2.83598543]
[1739486293397,3.2078,2667.1,2667.0,2.83598543]
[1739486297208,0.00561977,2667.3,2667.2,0.74981]
[1739486297413,0.00561977,2667.3,2667.2,2.23503543]
[1739486298015,0.00561977,2667.3,2667.2,3.72026086]
[1739486298404,1.1157,2667.8,2667.2,3.72026086]
[1739486298405,1.1157,2667.8,2667.7,0.74967]
[1739486298607,1.1157,2667.8,2667.7,2.23489543]
[1739486299117,3.2078,2667.9,2667.8,0.74964]
[1739486301914,1.13041977,2668.1,2667.7,1.48522543]
[1739486302120,1.13041977,2668.1,2668.0,0.74958]
[1739486303418,0.00561977,2668.1,2668.0,0.74958]
[1739486303621,0.00561977,2668.1,2668.0,1.34728]
[1739486303925,0.00561977,2668.1,2668.0,1.91738]
[1739486305424,0.00561977,2668.1,2668.0,3.53938]
[1739486305924,0.00561977,2668.1,2668.0,3.8415142]
[1739486306327,0.00561977,2668.1,2668.0,4.4210142]
[1739486307728,1.48522543,2668.9,2668.6,0.7494]
[1739486308028,1.87166,2668.8,2668.6,0.7494]
[1739486308232,1.1223,2668.8,2668.4,3.10722543]
[1739486308430,0.74943,2668.6,2668.5,0.74943]
[1739486308728,0.74944,2668.5,2668.4,2.37145]
[1739486308919,0.74944,2668.5,2668.4,2.37147]
[1739486310620,4.69302543,2668.7,2668.4,2.37147]
[1739486310823,0.74944,2668.5,2668.4,2.37147]
[1739486312631,0.74944,2668.5,2668.4,3.85669543]
[1739486312831,0.74943,2668.6,2668.5,0.74941]
[1739486314225,3.95723,2668.7,2668.6,0.74941]
[1739486321130,0.74943,2668.7,2668.6,0.74941]
[1739486335647,1.87728977,2668.8,2668.7,0.74939]
[1739486336145,1.87727977,2668.8,2668.7,0.74939]
[1739486336948,2.40744418,2668.8,2668.7,0.74939]
[1739486338747,1.83014418,2668.8,2668.7,0.74939]
[1739486339452,1.29997977,2668.8,2668.7,0.74939]
[1739486340653,0.55061977,2668.8,2668.7,0.74939]
[1739486340846,0.00561977,2668.8,2668.7,0.74939]
[1739486342761,0.00561977,2668.8,2668.7,3.95719]
[1739486351458,0.5471,2669.4,2669.3,0.74922]
[1739486355961,3.767,2669.5,2669.4,0.74919]
[1739486356460,3.2078,2669.5,2669.4,0.74919]
[1739486356658,0.75475977,2669.6,2669.5,0.74916]
[1739486356971,0.00561977,2669.6,2669.5,0.74916]
[1739486367378,0.00561977,2669.6,2669.4,0.5859]
[1739486367578,0.74916,2669.5,2669.4,1.62]
[1739486367776,1.6955,2669.5,2669.4,2.36919]
[1739486370671,1.6955,2669.5,2669.3,3.2078]
[1739486370871,0.74919,2669.4,2669.3,3.957]
[1739486371276,0.74919,2669.4,2669.3,3.2078]
[1739486373077,0.74919,2669.4,2669.3,3.95702]
[1739486373275,0.74919,2669.4,2669.3,3.2078]
[1739486374575,0.74919,2669.4,2669.3,3.95702]
[1739486375366,0.74919,2669.4,2669.3,3.2078]
[1739486375571,0.74919,2669.4,2669.3,3.95702]
[1739486380573,0.74919,2669.4,2669.3,3.2078]
[1739486382383,0.74922,2669.3,2669.2,0.74923]
[1739486387789,0.74922,2669.4,2669.3,0.7492]
[1739486388186,0.74924,2669.3,2669.2,0.74922]
[1739486397486,0.74921,2669.4,2669.3,0.74921]
[1739486400285,0.75476977,2669.6,2669.4,0.74919]
[1739486400589,0.00561977,2669.6,2669.3,3.2078]
[1739486400784,0.74919,2669.4,2669.3,3.8052]
[1739486400984,0.74919,2669.4,2669.3,3.2078]
[1739486403189,0.74919,2669.4,2669.3,3.95702]
[1739486404889,0.57701977,2669.6,2669.0,3.8052]
[1739486405088,0.74924,2669.3,2669.2,0.74923]
[1739486407694,1.87292,2669.5,2669.0,3.8052]
[1739486407894,0.74926,2669.2,2669.1,0.74925]
[1739486408295,0.74924,2669.3,2669.2,0.74922]
[1739486414412,0.74925,2669.2,2669.1,1.33285]
[1739486415312,1.1832,2669.4,2669.1,0.5836]
[1739486415507,0.74924,2669.3,2669.2,0.74924]
[1739486417614,0.74925,2669.2,2669.1,1.33287]
[1739486419005,0.74925,2669.3,2669.2,0.74924]
[1739486420017,0.74925,2669.2,2669.1,1.33285]
[1739486420213,1.1832,2669.4,2669.1,0.5836]
[1739486420412,0.74925,2669.2,2669.1,1.33285]
[1739486421015,0.74924,2669.3,2669.1,1.33285]
[1739486421214,0.74925,2669.2,2669.1,1.33285]
[1739486421715,0.74925,2669.2,2669.1,0.5836]
[1739486424921,0.74925,2669.2,2669.1,1.33287]
[1739486426425,1.1832,2669.4,2669.1,0.5836]
[1739486426716,0.74925,2669.3,2669.2,0.74923]
[1739486427114,0.74925,2669.3,2669.2,1.34713]
[1739486428227,0.74925,2669.3,2669.2,1.34715]
[1739486429423,0.74925,2669.3,2669.2,0.5979]
[1739486451840,0.74925,2669.3,2669.2,1.34715]
[1739486454243,0.74925,2669.3,2669.2,0.5979]
[1739486462346,0.74925,2669.3,2669.2,1.34715]
[1739486462945,0.74925,2669.3,2669.2,0.5979]
[1739486463444,0.74925,2669.3,2669.2,1.34715]
[1739486466343,7.1429252,2669.6,2669.2,0.5979]
[1739486466344,3.21341977,2669.6,2669.2,0.5979]
[1739486466551,0.00561977,2669.6,2669.3,4.69302543]
[1739486466746,0.00561977,2669.6,2669.5,2.23438543]
[1739486470048,0.75474977,2669.6,2669.5,2.23438543]
[1739486470350,0.00561977,2669.6,2669.5,2.23438543]